[Event "elllobregat Open-A 2019"]
[Site "El Prat de Llobregat"]
[Date "2019.12.05"]
[Round "3.12"]
[White "Minero Pineda, Sergio"]
[Black "Sosa, Tomas"]
[Result "0-1"]
[ECO "A61"]
[WhiteElo "2381"]
[BlackElo "2520"]
[Annotator "ChessBase"]
[PlyCount "112"]
[EventDate "2019.12.03"]
[EventType "swiss"]
[EventCountry "ESP"]
[SourceTitle "playchess.com"]
[Source "ChessBase"]
[SourceQuality "1"]
[TimeControl "40/5400+30:1800+30"]

1. d4 {[%emt 0:00:59]} Nf6 {[%emt 0:00:10]} 2. c4 {[%emt 0:00:13]} e6 {[%emt 0:01:13]} 3. Nf3 {[%emt 0:00:18]} c5 {[%emt 0:00:42]} 4. d5 {[%emt 0:00:22]} exd5 {[%emt 0:00:07]} 5. cxd5 d6 {[%emt 0:00:06]} 6. Nc3 {[%emt 0:00:27]} g6 {[%emt 0:00:34]} 7. h3 {[%emt 0:01:51]} Bg7 {[%emt 0:01:11]} 8. e4 {[%emt 0:00:16]} O-O {[%emt 0:00:26]} 9. Bd3 {[%emt 0:00:10]} Na6 {[%emt 0:04:15]} 10. O-O Nc7 {[%emt 0:13:31]} 11. a4 {[%emt 0:07:54]} a6 {[%emt 0:02:38]} 12. Bf4 {[%emt 0:09:52]} Rb8 {[%emt 0:08:52]} 13. Bh2 {[%emt 0:00:33]} Re8 {[%emt 0:13:56]} 14. Re1 {[%emt 0:24:02]} b5 15. e5 {[%emt 0:00:09]} dxe5 {[%emt 0:00:56]} 16. Nxe5 {[%emt 0:08:09]} Bb7 {[%emt 0:01:40]} 17. axb5 {[%emt 0:19:53]} Nfxd5 18. Bc4 {[%emt 0:01:02]} axb5 {[%emt 0:23:33]} 19. Nxb5 Nxb5 {[%emt 0:07:20]} 20. Bxb5 {[%emt 0:00:37]} Re6 {[%emt 0:09:24]} 21. Nc6 {[%emt 0:13:42]} Bxc6 22. Bxc6 Rxc6 {[%emt 0:07:48]} 23. Bxb8 {[%emt 0:00:48]} Bxb2 {[%emt 0:00:33]} 24. Ra8 Bd4 25. Qa4 {[%emt 0:09:26]} Rc8 {[%emt 0:01:01]} 26. Qa7 Nb6 {[%emt 0:01:37]} 27. Bc7 {[%emt 0:02:13]} Bxf2+ 28. Kxf2 {[%emt 0:00:28]} Qd4+ {[%emt 0:01:15]} 29. Kf1 {[%emt 0:00:10]} Nxa8 30. Be5 {[%emt 0:00:14]} Qc4+ {[%emt 0:01:01]} 31. Kg1 {[%emt 0:00:05]} Re8 32. Qa1 Nb6 {[%emt 0:00:55]} 33. Rc1 {[%emt 0:01:25]} Qa4 34. Qc3 {[%emt 0:00:06]} Nd5 {[%emt 0:01:04]} 35. Qg3 Qe4 {[%emt 0:00:58]} 36. Re1 {[%emt 0:00:36]} Qf5 {[%emt 0:00:00]} 37. Ba1 {[%emt 0:01:42]} Rxe1+ 38. Qxe1 {[%emt 0:00:03]} Qd7 {[%emt 0:01:26]} 39. Qa5 {[%emt 0:00:23]} Qc8 {[%emt 0:00:33]} 40. Qd2 {[%emt 0:00:00]} Qc6 {[%emt 0:00:00]} 41. Qb2 {[%emt 0:02:10]} f6 {[%emt 0:05:24]} 42. Qb8+ {[%emt 0:00:04]} Kg7 {[%emt 0:00:19]} 43. Qa7+ {[%emt 0:00:08]} Qc7 {[%emt 0:03:55]} 44. Qa8 {[%emt 0:00:30]} Qd7 {[%emt 0:00:13]} 45. Qa6 {[%emt 0:00:32]} Qe7 {[%emt 0:00:58]} 46. Kh2 {[%emt 0:00:28]} Qc7+ {[%emt 0:00:39]} 47. Kh1 {[%emt 0:00:06]} c4 {[%emt 0:01:35]} 48. Qe6 {[%emt 0:00:07]} Qb7 49. Qe1 {[%emt 0:01:01]} Qc6 {[%emt 0:01:15]} 50. Bc3 {[%emt 0:01:44]} Qc5 {[%emt 0:01:52]} 51. Bd2 {[%emt 0:00:40]} c3 {[%emt 0:00:29]} 52. Bc1 {[%emt 0:00:05]} Qd4 {[%emt 0:00:33]} 53. Ba3 {[%emt 0:01:54]} c2 {[%emt 0:00:42]} 54. Qa5 {[%emt 0:00:36]} Qa1+ {[%emt 0:03:11]} 55. Kh2 {[%emt 0:00:08]} c1=Q {[%emt 0:00:20]} 56. Qa7+ {[%emt 0:00:06]} Qc7+ 0-1

[Event "elllobregat Open-A 2019"]
[Site "El Prat de Llobregat"]
[Date "2019.12.05"]
[Round "3.13"]
[White "Del Rio De Angelis, Salvador G."]
[Black "Pigeat, Alexandre"]
[Result "1-0"]
[ECO "D11"]
[WhiteElo "2507"]
[BlackElo "2357"]
[Annotator "ChessBase"]
[PlyCount "71"]
[EventDate "2019.12.03"]
[EventType "swiss"]
[EventCountry "ESP"]
[SourceTitle "playchess.com"]
[Source "ChessBase"]
[SourceQuality "1"]
[TimeControl "40/5400+30:1800+30"]

1. d4 {[%emt 0:00:00]} d5 {[%emt 0:00:00]} 2. c4 {[%emt 0:00:07]} c6 {[%emt 0:00:02]} 3. Nf3 {[%emt 0:00:10]} Nf6 {[%emt 0:00:37]} 4. g3 {[%emt 0:00:22]} Bf5 {[%emt 0:03:36]} 5. Nc3 {[%emt 0:00:18]} Nbd7 {[%emt 0:03:21]} 6. Nh4 {[%emt 0:04:53]} Be6 {[%emt 0:04:22]} 7. Bg2 {[%emt 0:00:22]} g6 {[%emt 0:03:00]} 8. O-O Bg7 {[%emt 0:02:02]} 9. f4 {[%emt 0:01:59]} dxc4 {[%emt 0:14:14]} 10. e4 {[%emt 0:03:29]} Nb6 {[%emt 0:01:10]} 11. e5 {[%emt 0:08:15]} Nfd5 {[%emt 0:03:17]} 12. Ne4 {[%emt 0:00:13]} Qc8 {[%emt 0:03:32]} 13. f5 gxf5 {[%emt 0:10:17]} 14. Nc5 {[%emt 0:09:33]} f4 {[%emt 0:06:38]} 15. gxf4 {[%emt 0:13:49]} Bg4 {[%emt 0:01:04]} 16. Qe1 {[%emt 0:02:08]} Nd7 {[%emt 0:17:24]} 17. Ne4 {[%emt 0:03:50]} Qc7 {[%emt 0:02:23]} 18. Qg3 {[%emt 0:03:18]} f5 19. Nf2 {[%emt 0:01:41]} Bf8 {[%emt 0:05:16]} 20. Nxg4 {[%emt 0:03:51]} Rg8 {[%emt 0:00:19]} 21. Nxf5 {[%emt 0:00:32]} h5 {[%emt 0:02:36]} 22. Qh4 {[%emt 0:00:27]} O-O-O {[%emt 0:05:42]} 23. Nge3 {[%emt 0:04:18]} N7b6 {[%emt 0:01:30]} 24. Nxd5 {[%emt 0:01:56]} Nxd5 {[%emt 0:00:29]} 25. Kh1 {[%emt 0:01:43]} Nb4 {[%emt 0:01:30]} 26. Qh3 {[%emt 0:03:09]} Kb8 {[%emt 0:03:12]} 27. Qc3 {[%emt 0:04:07]} e6 {[%emt 0:00:55]} 28. Nd6 {[%emt 0:00:25]} Qg7 {[%emt 0:02:22]} 29. Rg1 {[%emt 0:00:59]} Bxd6 {[%emt 0:00:52]} 30. exd6 {[%emt 0:00:12]} Nd5 {[%emt 0:01:31]} 31. Qxc4 Rxd6 32. Bd2 {[%emt 0:01:11]} Nf6 {[%emt 0:01:54]} 33. Qe2 {[%emt 0:00:57]} Ng4 {[%emt 0:00:32]} 34. Bc3 {[%emt 0:01:57]} Qf6 {[%emt 0:00:46]} 35. Bf3 {[%emt 0:00:50]} Qh4 {[%emt 0:00:34]} 36. Bxg4 {[%emt 0:00:29]} 1-0

[Event "elllobregat Open-A 2019"]
[Site "El Prat de Llobregat"]
[Date "2019.12.05"]
[Round "3.14"]
[White "Jerez Perez, Alfonso"]
[Black "Girish, A. Koushik"]
[Result "1/2-1/2"]
[ECO "C60"]
[WhiteElo "2369"]
[BlackElo "2506"]
[Annotator "RC"]
[PlyCount "149"]
[EventDate "2019.12.03"]
[EventType "swiss"]
[EventCountry "ESP"]
[SourceTitle "playchess.com"]
[Source "ChessBase"]
[SourceQuality "1"]
[TimeControl "40/5400+30:1800+30"]

1. e4 {[%emt 0:00:00]} e5 {[%emt 0:00:00]} 2. Nf3 {[%emt 0:00:09]} Nc6 {[%emt 0:00:00]} 3. Bb5 {[%emt 0:00:41]} g6 {[%emt 0:01:02]} 4. d4 {[%emt 0:01:47]} exd4 {[%emt 0:00:12]} 5. Nxd4 {[%emt 0:00:18]} Bg7 {[%emt 0:00:08]} 6. Nxc6 {[%emt 0:01:02]} bxc6 {[%emt 0:00:04]} 7. Bc4 {[%emt 0:00:07]} Ne7 {[%emt 0:01:23]} 8. Nc3 {[%emt 0:01:18]} O-O {[%emt 0:02:35]} 9. O-O {[%emt 0:00:29]} Rb8 10. Qf3 {[%emt 0:04:50]} d6 {[%emt 0:04:14]} 11. Rb1 {[%emt 0:09:18]} Kh8 {[%emt 0:12:50]} 12. Bg5 {[%emt 0:27:12]} f6 {[%emt 0:00:35]} 13. Bh4 {[%emt 0:00:43]} g5 {[%emt 0:24:08]} 14. Bg3 {[%emt 0:00:10]} f5 {[%emt 0:00:05]} 15. exf5 Bxf5 {[%emt 0:00:21]} 16. Bd3 {[%emt 0:04:04]} g4 {[%emt 0:02:38]} 17. Qe2 {[%emt 0:01:57]} Bxd3 {[%emt 0:00:24]} 18. cxd3 {[%emt 0:00:59]} Qd7 {[%emt 0:00:57]} 19. Rfe1 {[%emt 0:03:59]} Ng6 {[%emt 0:03:23]} 20. Ne4 {[%emt 0:07:09]} Qf5 {[%emt 0:11:28]} 21. Rf1 {[%emt 0:06:41]} Bd4 {[%emt 0:07:44]} 22. Kh1 {[%emt 0:00:43]} d5 {[%emt 0:05:52]} 23. Nc3 {[%emt 0:01:43]} Nf4 {[%emt 0:10:09]} 24. Qd2 {[%emt 0:07:37]} Nxd3 25. f3 Be5 {[%emt 0:07:44]} 26. Bxe5+ {[%emt 0:12:05]} Nxe5 {[%emt 0:00:04]} 27. Qd4 {[%emt 0:00:12]} Qf4 {[%emt 0:01:17]} 28. Ne2 {[%emt 0:02:59]} Qxd4 {[%emt 0:00:08]} 29. Nxd4 gxf3 {[%emt 0:03:00]} 30. Nxf3 {[%emt 0:00:26]} Nxf3 {[%emt 0:00:51]} 31. gxf3 {[%emt 0:00:08]} c5 {[%emt 0:00:56]} 32. b3 {[%emt 0:00:29]} Rf4 {[%emt 0:00:28]} 33. Rbc1 {[%emt 0:00:14]} c4 {[%emt 0:00:26]} 34. bxc4 {[%emt 0:00:20]} Rxc4 {[%emt 0:01:07]} 35. Rxc4 dxc4 {[%emt 0:00:01]} 36. Rc1 {[%emt 0:01:35]} Rb4 {[%emt 0:00:03]} 37. Rd1 {[%emt 0:01:17]} c3 {[%emt 0:01:40]} 38. Rd8+ {[%emt 0:00:13]} Kg7 {[%emt 0:00:03]} 39. Rd7+ {[%emt 0:00:04]} Kf6 {[%emt 0:00:05]} 40. Rxc7 {[%emt 0:00:00]} Rb1+ {[%emt 0:00:00]} 41. Kg2 {[%emt 0:00:10]} Rb2+ {[%emt 0:01:42]} 42. Kg3 {[%emt 0:00:27]} c2 {[%emt 0:00:03]} 43. Kf4 {[%emt 0:02:52]} Rxa2 {[%emt 0:02:54]} 44. Ke3 {[%emt 0:01:31]} h5 45. h4 Ke5 {[%emt 0:03:00]} 46. Kd2 {[%emt 0:03:13]} Ra5 {[%emt 0:07:22]} 47. Rc4 {[%emt 0:01:58]} Kd5 {[%emt 0:04:56]} 48. Rxc2 {[%emt 0:00:21]} Kd4 {[%emt 0:00:15]} 49. Rb2 {[%emt 0:00:57]} Rd5 {[%emt 0:01:31]} 50. Rb7 {[%emt 0:02:00]} a5 {[%emt 0:00:25]} 51. Ra7 {[%emt 0:00:09]} Rf5 {[%emt 0:01:56]} 52. Ra8 {[%emt 0:02:00]} Rb5 {[%emt 0:01:51]} 53. Ra6 {[%emt 0:02:53]} Kc4 54. Kc2 {[%emt 0:00:59]} Rf5 {[%emt 0:01:25]} 55. Ra8 {[%emt 0:00:34]} Kb4 56. Rb8+ {[%emt 0:00:34]} Ka3 {[%emt 0:06:20]} 57. Rg8 {[%emt 0:01:40]} Rc5+ {[%emt 0:00:55]} 58. Kb1 {[%emt 0:01:14]} Rc4 {[%emt 0:04:48]} 59. Rg5 {[%emt 0:00:22]} Rxh4 {[%emt 0:00:10]} 60. f4 {[%emt 0:01:47]} a4 {[%emt 0:00:43]} 61. f5 Rb4+ {[%emt 0:00:47]} 62. Kc2 {[%emt 0:00:38]} h4 {[%emt 0:00:04]} 63. f6 {[%emt 0:00:38]} Rc4+ {[%emt 0:00:49]} 64. Kb1 {[%emt 0:01:33]} Rf4 {[%emt 0:00:09]} 65. Rh5 {[%emt 0:00:08]} Kb3 {[%emt 0:00:19]} 66. Rb5+ {[%emt 0:00:20]} Kc3 {[%emt 0:00:41]} 67. Rh5 {[%emt 0:00:16]} a3 68. f7 {[%emt 0:01:23]} Kb3 {[%emt 0:01:41]} 69. Rb5+ {[%emt 0:00:06]} Ka4 {[%emt 0:00:12]} 70. Rh5 {[%emt 0:00:07]} Rf1+ {[%emt 0:00:08]} 71. Ka2 {[%emt 0:00:38]} Rf2+ {[%emt 0:00:05]} 72. Ka1 {[%emt 0:00:17]} Kb3 73. Rb5+ {[%emt 0:00:16]} Kc3 {[%emt 0:01:08]} 74. Rh5 {[%emt 0:00:24]} Rxf7 {[%emt 0:00:20]} 75. Rxh4 {[%emt 0:00:12]} 1/2-1/2

[Event "elllobregat Open-A 2019"]
[Site "El Prat de Llobregat"]
[Date "2019.12.05"]
[Round "3.15"]
[White "Asis Gargatagli, Hipolito"]
[Black "Gual Pascual, Antonio"]
[Result "0-1"]
[ECO "B07"]
[WhiteElo "2497"]
[BlackElo "2349"]
[Annotator "ChessBase"]
[PlyCount "44"]
[EventDate "2019.12.03"]
[EventType "swiss"]
[EventCountry "ESP"]
[SourceTitle "playchess.com"]
[Source "ChessBase"]
[SourceQuality "1"]
[TimeControl "40/5400+30:1800+30"]

1. e4 {[%emt 0:00:41]} d6 {[%emt 0:00:00]} 2. d4 Nf6 {[%emt 0:00:00]} 3. Nc3 {[%emt 0:00:26]} g6 {[%emt 0:00:05]} 4. Be3 {[%emt 0:00:31]} c6 {[%emt 0:01:02]} 5. h3 {[%emt 0:00:28]} Nbd7 {[%emt 0:04:01]} 6. f4 {[%emt 0:00:43]} e5 {[%emt 0:00:53]} 7. Nf3 {[%emt 0:00:18]} Bg7 {[%emt 0:16:31]} 8. dxe5 {[%emt 0:18:16]} dxe5 {[%emt 0:02:02]} 9. fxe5 Nh5 {[%emt 0:01:34]} 10. Bc4 {[%emt 0:05:23]} Ng3 {[%emt 0:08:54]} 11. Bg5 {[%emt 0:48:51]} f6 {[%emt 0:07:51]} 12. exf6 {[%emt 0:01:41]} Bxf6 {[%emt 0:00:18]} 13. Bxf6 {[%emt 0:04:55]} Qxf6 {[%emt 0:00:32]} 14. Rg1 {[%emt 0:03:00]} b5 {[%emt 0:00:51]} 15. Bb3 {[%emt 0:01:28]} b4 {[%emt 0:13:43]} 16. Na4 {[%emt 0:01:54]} Ne5 {[%emt 0:01:30]} 17. Nxe5 {[%emt 0:03:58]} Qxe5 {[%emt 0:00:05]} 18. Qf3 {[%emt 0:02:54]} Rf8 {[%emt 0:03:09]} 19. Qe3 {[%emt 0:00:10]} Nf5 {[%emt 0:09:28]} 20. Qc5 {[%emt 0:00:59]} Qxe4+ 21. Kd2 {[%emt 0:00:02]} Qf4+ {[%emt 0:01:41]} 22. Ke1 {[%emt 0:00:13]} Nd4 {[%emt 0:00:58]} 0-1

[Event "elllobregat Open-A 2019"]
[Site "El Prat de Llobregat"]
[Date "2019.12.05"]
[Round "3.16"]
[White "Alonso Moyano, Jonathan"]
[Black "Erenberg, Ariel"]
[Result "0-1"]
[ECO "B24"]
[WhiteElo "2351"]
[BlackElo "2479"]
[Annotator "ChessBase"]
[PlyCount "70"]
[EventDate "2019.12.03"]
[EventType "swiss"]
[EventCountry "ESP"]
[SourceTitle "playchess.com"]
[Source "ChessBase"]
[SourceQuality "1"]
[TimeControl "40/5400+30:1800+30"]

1. e4 {[%emt 0:00:00]} c5 {[%emt 0:00:00]} 2. Nc3 {[%emt 0:00:00]} Nc6 {[%emt 0:00:00]} 3. Bb5 {[%emt 0:00:01]} Nd4 {[%emt 0:00:19]} 4. Bc4 {[%emt 0:00:07]} e6 {[%emt 0:00:37]} 5. Nge2 {[%emt 0:00:23]} a6 {[%emt 0:00:40]} 6. d3 {[%emt 0:03:00]} b5 {[%emt 0:00:16]} 7. Bb3 {[%emt 0:00:05]} Nxb3 {[%emt 0:00:24]} 8. axb3 {[%emt 0:00:06]} Bb7 {[%emt 0:00:04]} 9. O-O {[%emt 0:01:28]} Nf6 {[%emt 0:17:36]} 10. f4 {[%emt 0:05:27]} Be7 11. f5 exf5 {[%emt 0:15:10]} 12. Rxf5 {[%emt 0:01:01]} d5 {[%emt 0:04:47]} 13. exd5 {[%emt 0:20:07]} Nxd5 {[%emt 0:00:02]} 14. Nxd5 {[%emt 0:07:54]} Bxd5 {[%emt 0:04:59]} 15. Nc3 {[%emt 0:02:55]} Bb7 16. Be3 {[%emt 0:02:21]} O-O {[%emt 0:03:07]} 17. Qd2 {[%emt 0:02:21]} Qd7 {[%emt 0:03:31]} 18. Raf1 g6 {[%emt 0:00:11]} 19. R5f2 {[%emt 0:03:40]} f5 {[%emt 0:12:47]} 20. Bg5 {[%emt 0:13:39]} Rae8 {[%emt 0:02:13]} 21. Ne2 {[%emt 0:06:56]} Rf7 22. Qf4 {[%emt 0:00:15]} Bd6 {[%emt 0:07:49]} 23. Qh4 {[%emt 0:03:20]} Be5 24. b4 {[%emt 0:01:02]} cxb4 {[%emt 0:06:23]} 25. Qxb4 {[%emt 0:03:51]} Qc7 {[%emt 0:14:18]} 26. Nf4 {[%emt 0:01:06]} Bg7 {[%emt 0:01:29]} 27. Bh4 Qc6 28. Rd2 {[%emt 0:14:16]} h6 {[%emt 0:02:50]} 29. Be1 {[%emt 0:01:30]} Rfe7 30. Rdf2 g5 {[%emt 0:04:44]} 31. Nh5 {[%emt 0:01:02]} Re2 32. h4 Qxg2+ {[%emt 0:01:06]} 33. Rxg2 {[%emt 0:02:49]} Rxg2+ 34. Kh1 {[%emt 0:00:05]} Rg4+ {[%emt 0:00:10]} 35. Kh2 {[%emt 0:00:13]} Re2+ {[%emt 0:00:12]} 0-1

[Event "elllobregat Open-A 2019"]
[Site "El Prat de Llobregat"]
[Date "2019.12.06"]
[Round "4.2"]
[White "Alonso Rosell, Alvar"]
[Black "Kjartansson, Gudmundur"]
[Result "1/2-1/2"]
[ECO "D30"]
[WhiteElo "2548"]
[BlackElo "2448"]
[Annotator "ChessBase"]
[PlyCount "145"]
[EventDate "2019.12.03"]
[EventType "swiss"]
[EventCountry "ESP"]
[SourceTitle "playchess.com"]
[Source "ChessBase"]
[SourceQuality "1"]
[TimeControl "40/5400+30:1800+30"]

1. d4 {[%emt 0:15:33]} d5 {[%emt 0:00:00]} 2. c4 {[%emt 0:00:26]} e6 {[%emt 0:00:00]} 3. Nf3 {[%emt 0:00:08]} Nf6 {[%emt 0:00:00]} 4. e3 {[%emt 0:02:35]} b6 {[%emt 0:01:08]} 5. cxd5 {[%emt 0:08:25]} exd5 {[%emt 0:00:09]} 6. Bb5+ {[%emt 0:00:19]} c6 {[%emt 0:00:10]} 7. Bd3 {[%emt 0:01:00]} Bd6 8. Nc3 {[%emt 0:03:26]} O-O {[%emt 0:03:56]} 9. O-O {[%emt 0:00:25]} Re8 {[%emt 0:01:45]} 10. b3 Nbd7 11. Bb2 {[%emt 0:02:41]} Bb7 {[%emt 0:04:29]} 12. Rc1 {[%emt 0:02:59]} h6 {[%emt 0:02:28]} 13. Bf5 Ba6 14. Re1 {[%emt 0:02:32]} g6 {[%emt 0:09:04]} 15. Bd3 {[%emt 0:01:08]} Bxd3 {[%emt 0:07:35]} 16. Qxd3 Ne4 {[%emt 0:05:05]} 17. Qa6 {[%emt 0:12:00]} Qc8 18. Qe2 Qb7 {[%emt 0:08:15]} 19. Nxe4 {[%emt 0:14:56]} dxe4 {[%emt 0:00:45]} 20. Nd2 {[%emt 0:00:08]} c5 {[%emt 0:01:23]} 21. Qg4 b5 {[%emt 0:08:25]} 22. Qh4 {[%emt 0:09:26]} cxd4 23. Qxh6 {[%emt 0:06:08]} Bf8 {[%emt 0:07:58]} 24. Qh4 {[%emt 0:01:21]} Be7 {[%emt 0:01:56]} 25. Qh3 {[%emt 0:06:50]} Bf6 {[%emt 0:00:05]} 26. exd4 Nf8 {[%emt 0:04:50]} 27. Qg4 {[%emt 0:04:42]} Bg7 {[%emt 0:06:11]} 28. Nxe4 {[%emt 0:01:06]} Qa6 {[%emt 0:01:03]} 29. a3 {[%emt 0:00:36]} f5 30. Nc5 {[%emt 0:00:37]} fxg4 {[%emt 0:02:14]} 31. Nxa6 {[%emt 0:04:41]} Ne6 {[%emt 0:02:42]} 32. Red1 Rad8 {[%emt 0:00:29]} 33. Kf1 {[%emt 0:01:23]} Nxd4 34. Nc7 {[%emt 0:00:54]} Rf8 {[%emt 0:00:50]} 35. Bxd4 {[%emt 0:00:25]} Bxd4 {[%emt 0:00:07]} 36. Rxd4 {[%emt 0:00:36]} Rxd4 {[%emt 0:00:01]} 37. Ne6 Rd3 {[%emt 0:00:07]} 38. Nxf8 {[%emt 0:00:09]} Kxf8 {[%emt 0:00:02]} 39. Rc8+ Kf7 {[%emt 0:02:21]} 40. Rc7+ {[%emt 0:00:00]} Kf6 {[%emt 0:00:00]} 41. Rc6+ {[%emt 0:10:13]} Kf7 42. Ra6 {[%emt 0:05:05]} Rxb3 {[%emt 0:01:56]} 43. g3 {[%emt 0:00:45]} b4 {[%emt 0:14:30]} 44. Rxa7+ {[%emt 0:00:52]} Kf6 {[%emt 0:00:13]} 45. Ra6+ {[%emt 0:00:29]} Kf5 {[%emt 0:00:49]} 46. Ra5+ {[%emt 0:00:12]} Kf6 47. Ra6+ {[%emt 0:01:09]} Kf5 {[%emt 0:00:12]} 48. axb4 {[%emt 0:00:04]} Rxb4 {[%emt 0:00:19]} 49. Kg2 {[%emt 0:00:11]} Rb2 50. Ra5+ {[%emt 0:00:22]} Kf6 {[%emt 0:01:26]} 51. Ra4 {[%emt 0:00:09]} Kg5 {[%emt 0:01:15]} 52. Rf4 Rb1 {[%emt 0:06:26]} 53. Rf8 {[%emt 0:00:04]} Ra1 {[%emt 0:00:30]} 54. Rf7 {[%emt 0:00:20]} Rb1 {[%emt 0:00:05]} 55. h4+ {[%emt 0:00:30]} gxh3+ 56. Kxh3 {[%emt 0:00:29]} Rh1+ {[%emt 0:00:49]} 57. Kg2 {[%emt 0:00:01]} Ra1 {[%emt 0:00:07]} 58. f3 {[%emt 0:00:23]} Rb1 {[%emt 0:00:38]} 59. Ra7 {[%emt 0:00:59]} Kf5 {[%emt 0:02:03]} 60. Ra5+ {[%emt 0:00:05]} Kf6 {[%emt 0:00:10]} 61. Kh3 {[%emt 0:00:01]} Rb4 {[%emt 0:00:23]} 62. Ra6+ {[%emt 0:00:15]} Kg7 {[%emt 0:02:31]} 63. f4 Rb3 {[%emt 0:04:34]} 64. Kh4 {[%emt 0:01:04]} Rb5 {[%emt 0:02:18]} 65. g4 {[%emt 0:00:55]} g5+ {[%emt 0:01:22]} 66. fxg5 {[%emt 0:00:03]} Rb1 {[%emt 0:00:19]} 67. g6 {[%emt 0:01:03]} Kh6 68. Re6 {[%emt 0:00:24]} Rb3 {[%emt 0:03:46]} 69. Ra6 {[%emt 0:00:13]} Rc3 {[%emt 0:00:11]} 70. Re6 {[%emt 0:00:29]} Rb3 {[%emt 0:00:06]} 71. g5+ {[%emt 0:00:07]} Kg7 72. Kg4 {[%emt 0:00:05]} Rb1 {[%emt 0:00:19]} 73. Kf5 {[%emt 0:00:19]} 1/2-1/2

[Event "elllobregat Open-A 2019"]
[Site "El Prat de Llobregat"]
[Date "2019.12.06"]
[Round "4.4"]
[White "Bartel, Mateusz"]
[Black "Erenberg, Ariel"]
[Result "1/2-1/2"]
[ECO "C84"]
[WhiteElo "2634"]
[BlackElo "2479"]
[Annotator "RC"]
[PlyCount "76"]
[EventDate "2019.12.03"]
[EventType "swiss"]
[EventCountry "ESP"]
[SourceTitle "playchess.com"]
[Source "ChessBase"]
[SourceQuality "1"]
[TimeControl "40/5400+30:1800+30"]

1. e4 {[%emt 0:00:00]} e5 {[%emt 0:00:00]} 2. Nf3 {[%emt 0:00:00]} Nc6 {[%emt 0:00:00]} 3. Bb5 {[%emt 0:00:05]} a6 {[%emt 0:00:00]} 4. Ba4 {[%emt 0:00:16]} Nf6 {[%emt 0:00:00]} 5. O-O {[%emt 0:00:06]} Be7 {[%emt 0:00:07]} 6. d3 {[%emt 0:00:04]} b5 {[%emt 0:01:29]} 7. Bb3 {[%emt 0:00:06]} O-O {[%emt 0:03:43]} 8. h3 d6 {[%emt 0:05:36]} 9. Bd2 {[%emt 0:00:20]} a5 {[%emt 0:03:50]} 10. a3 {[%emt 0:00:07]} a4 {[%emt 0:08:54]} 11. Ba2 {[%emt 0:00:31]} Bd7 {[%emt 0:07:28]} 12. Nc3 {[%emt 0:01:06]} b4 {[%emt 0:00:30]} 13. axb4 {[%emt 0:09:28]} Nxb4 {[%emt 0:00:30]} 14. Bc4 {[%emt 0:00:03]} Qb8 {[%emt 0:24:03]} 15. Be3 {[%emt 0:06:20]} c5 {[%emt 0:08:54]} 16. Qd2 {[%emt 0:02:22]} h6 {[%emt 0:02:53]} 17. Ra3 Bc6 {[%emt 0:06:12]} 18. Rfa1 {[%emt 0:16:18]} d5 {[%emt 0:01:14]} 19. exd5 {[%emt 0:00:04]} Nfxd5 {[%emt 0:08:11]} 20. Nxd5 {[%emt 0:28:49]} Nxd5 {[%emt 0:00:17]} 21. Qe2 {[%emt 0:00:03]} Re8 {[%emt 0:05:19]} 22. Bc1 {[%emt 0:05:37]} Bf6 {[%emt 0:04:16]} 23. Bxd5 {[%emt 0:07:33]} Bxd5 {[%emt 0:00:01]} 24. Rxa4 {[%emt 0:00:10]} Rxa4 {[%emt 0:01:19]} 25. Rxa4 {[%emt 0:00:04]} Qb5 26. Re4 {[%emt 0:05:16]} Bxe4 {[%emt 0:00:54]} 27. Qxe4 Qa6 {[%emt 0:02:06]} 28. Kh2 {[%emt 0:00:51]} Qa8 {[%emt 0:02:40]} 29. Qc4 {[%emt 0:02:06]} Qc6 {[%emt 0:02:07]} 30. Nd2 {[%emt 0:03:27]} Bg5 {[%emt 0:00:45]} 31. h4 {[%emt 0:00:02]} Bxd2 {[%emt 0:00:27]} 32. Bxd2 {[%emt 0:00:02]} e4 {[%emt 0:00:13]} 33. Be3 {[%emt 0:00:06]} exd3 {[%emt 0:01:37]} 34. cxd3 {[%emt 0:00:05]} Rc8 {[%emt 0:00:51]} 35. b3 {[%emt 0:01:13]} Qd6+ {[%emt 0:00:28]} 36. g3 {[%emt 0:00:11]} Rc6 {[%emt 0:00:27]} 37. Kg2 {[%emt 0:00:13]} Qf6 {[%emt 0:00:34]} 38. Bxc5 {[%emt 0:01:16]} Ra6 {[%emt 0:00:31]} 1/2-1/2

[Event "elllobregat Open-A 2019"]
[Site "El Prat de Llobregat"]
[Date "2019.12.06"]
[Round "4.5"]
[White "Akash Pc, Iyer"]
[Black "Puranik, Abhimanyu"]
[Result "0-1"]
[ECO "D70"]
[WhiteElo "2415"]
[BlackElo "2580"]
[Annotator "ChessBase"]
[PlyCount "100"]
[EventDate "2019.12.03"]
[EventType "swiss"]
[EventCountry "ESP"]
[SourceTitle "playchess.com"]
[Source "ChessBase"]
[SourceQuality "1"]
[TimeControl "40/5400+30:1800+30"]

1. d4 {[%emt 0:00:00]} Nf6 {[%emt 0:00:00]} 2. c4 {[%emt 0:00:00]} g6 {[%emt 0:00:00]} 3. f3 {[%emt 0:00:00]} d5 {[%emt 0:00:46]} 4. cxd5 {[%emt 0:00:00]} Nxd5 {[%emt 0:00:02]} 5. e4 {[%emt 0:00:02]} Nb6 {[%emt 0:00:03]} 6. Nc3 {[%emt 0:00:08]} Bg7 {[%emt 0:00:05]} 7. Be3 {[%emt 0:00:05]} O-O {[%emt 0:00:08]} 8. Qd2 {[%emt 0:00:08]} Nc6 {[%emt 0:00:09]} 9. O-O-O {[%emt 0:00:10]} Qd6 {[%emt 0:01:15]} 10. Nb5 {[%emt 0:00:32]} Qd7 {[%emt 0:00:12]} 11. f4 {[%emt 0:00:30]} a6 {[%emt 0:05:18]} 12. Nc3 {[%emt 0:00:54]} Rd8 {[%emt 0:01:05]} 13. Nf3 {[%emt 0:03:16]} Qe8 {[%emt 0:01:29]} 14. Qf2 Na7 15. Kb1 {[%emt 0:37:43]} Nb5 {[%emt 0:15:20]} 16. Rc1 f5 {[%emt 0:24:35]} 17. Nd5 {[%emt 0:04:29]} Nxd5 {[%emt 0:09:36]} 18. exd5 {[%emt 0:00:20]} b6 19. Bc4 {[%emt 0:07:35]} Bb7 {[%emt 0:10:05]} 20. d6+ {[%emt 0:07:03]} e6 21. dxc7 {[%emt 0:14:45]} Be4+ {[%emt 0:02:48]} 22. Ka1 {[%emt 0:00:07]} Nxc7 {[%emt 0:00:05]} 23. h4 {[%emt 0:00:21]} Bxf3 {[%emt 0:09:09]} 24. Qxf3 {[%emt 0:02:14]} h5 {[%emt 0:00:18]} 25. Qb7 Rd7 {[%emt 0:12:19]} 26. Qxb6 {[%emt 0:03:33]} Rb8 {[%emt 0:00:57]} 27. Qc6 Qe7 {[%emt 0:03:28]} 28. Bb3 {[%emt 0:04:03]} Nd5 {[%emt 0:01:25]} 29. Rhe1 {[%emt 0:00:01]} Rd6 {[%emt 0:02:49]} 30. Qc5 Qd7 {[%emt 0:00:39]} 31. Bd2 {[%emt 0:01:40]} Kh7 {[%emt 0:00:18]} 32. g3 {[%emt 0:02:01]} Rb5 {[%emt 0:00:25]} 33. Qc4 {[%emt 0:01:44]} Qb7 34. Qc8 {[%emt 0:03:59]} Bxd4 {[%emt 0:01:12]} 35. Qxb7+ {[%emt 0:07:21]} Rxb7 {[%emt 0:00:01]} 36. Re2 {[%emt 0:01:02]} Nf6 {[%emt 0:00:45]} 37. Bc3 {[%emt 0:01:40]} Bxc3 38. Rxc3 Ne4 {[%emt 0:00:54]} 39. Rce3 {[%emt 0:00:32]} Rc7 {[%emt 0:00:21]} 40. Re1 {[%emt 0:00:00]} Kg7 {[%emt 0:00:00]} 41. a3 {[%emt 0:02:04]} Kf6 {[%emt 0:02:52]} 42. Ba2 Rc2 {[%emt 0:02:38]} 43. Bb1 {[%emt 0:01:25]} Rg2 {[%emt 0:00:06]} 44. Bxe4 {[%emt 0:00:06]} fxe4 {[%emt 0:00:02]} 45. Rxe4 {[%emt 0:00:19]} Rxg3 {[%emt 0:00:11]} 46. Re5 {[%emt 0:01:25]} Rg4 {[%emt 0:02:20]} 47. Rg5 Rd5 48. Rxd5 {[%emt 0:04:23]} exd5 {[%emt 0:04:33]} 49. Re5 Rxh4 {[%emt 0:01:01]} 50. Rxd5 {[%emt 0:00:14]} Rxf4 0-1